[Event "MCCT Chessable Masters 2022"]
[Site "Online"]
[Date "2022.05.16"]
[Round "14.6"]
[White "Jones, Gawain C B"]
[Black "Van Foreest, Jorden"]
[Result "0-1"]
[ECO "A07"]
[WhiteElo "2669"]
[BlackElo "2715"]
[Annotator "TA"]
[PlyCount "72"]
[EventDate "2022.05.19"]
[EventType "tourn"]
[EventCountry "NET"]
[SourceTitle "playchess.com"]
[Source "ChessBase"]
[SourceQuality "1"]
[TimeControl "900+10"]

{[%evp 10,72,0,0,0,0,0,3,0,-39,-38,-37,-35,-43,-39,-44,-39,-52,-56,-59,-56,-56,-54,-63,-66,-67,-67,-67,-67,-81,-37,-159,-160,-248,-180,-162,-158,-347,-368,-366,-361,-353,-374,-360,-309,-352,-346,-416,-347,-401,-302,-284,-289,-296,-287,-354,-341,-525,-526,-493,-478,-824,-811,-762,-717]} 1. Nf3 {[%emt 0:00:00]} d5 {[%emt 0:00:00]} 2. g3 {[%emt 0:00:04]} g6 {[%emt 0:00:54]} 3. Bg2 {[%emt 0:00:03]} Bg7 {[%emt 0:00:01]} 4. O-O {[%emt 0:00:05]} e5 {[%emt 0:00:03]} 5. d3 {[%emt 0:00:01]} Nc6 {[%emt 0:00:14][%cal Bb8c6,Bc6d4,Bd4e2][%mdl 32]} 6. e4 {[%emt 0:00:04]} dxe4 {[%emt 0:00:07] A07: Réti Opening: New York and Capablanca Systems.} 7. dxe4 {[%emt 0:00:01]} Qxd1 {[%emt 0:00:01]} 8. Rxd1 {[%emt 0:00:01]} Bg4 {[%emt 0:00:05] [#] The position is equal.} 9. Nbd2 $146 {[%emt 0:02:09]} ({Predecessor:} 9. c3 Nf6 10. h3 Bd7 11. Nbd2 O-O-O 12. Re1 Ne8 13. Nc4 Be6 14. Bf1 f6 15. Be3 {½-½ (75) So,W (2778)-Shankland,S (2709) Saint Louis 2022}) 9... Nd4 {[%emt 0:00:33]} 10. c3 {[%emt 0:00:07]} Ne2+ {[%emt 0:00:03]} 11. Kf1 {[%emt 0:00:06]} Nxc1 {[%emt 0:00:01]} 12. Raxc1 {[%emt 0:00:03]} O-O-O {[%emt 0:00:47]} 13. h3 {[%emt 0:00:25]} Bd7 {[%emt 0:00:03]} 14. Ke1 {[%emt 0:00:30]} f6 {[%emt 0:00:24][%cal Bf7f6,Bf6f5,Bf5f4][%mdl 32]} 15. Nc4 {[%emt 0:00:08]} Nh6 {[%emt 0:00:21]} 16. Nfd2 {[%emt 0:01:10]} Nf7 {[%emt 0:00:16]} 17. Ne3 {[%emt 0:00:24]} c6 {[%emt 0:00:54]} 18. Ndc4 {[%emt 0:00:12]} Kc7 {[%emt 0:00:05]} 19. b4 {[%emt 0:00:02]} f5 {[%emt 0:01:12]} 20. h4 {[%emt 0:00:26]} ({Better is} 20. exf5 $15 gxf5 21. g4) 20... f4 $17 {[%emt 0:00:46]} 21. Nc2 {[%emt 0:00:15]} (21. Nf1 $17) 21... Be6 {[%emt 0:00:05]} 22. Bf1 {[%emt 0:00:22]} g5 {[%emt 0:00:41]} 23. a3 $2 {[%emt 0:01:50] [#] This costs White the game.} (23. Rxd8 $17 Rxd8 24. Rd1) 23... fxg3 $19 {[%emt 0:00:10]} 24. fxg3 {[%emt 0:00:03]} gxh4 {[%emt 0:00:01]} 25. gxh4 {[%emt 0:00:48]} Bf6 {[%emt 0:00:02][%cal Bg7f6,Bf6h4,Bh4g5,Bg5f4][%mdl 32]} 26. N2e3 {[%emt 0:00:11]} Bxh4+ {[%emt 0:00:09]} 27. Ke2 {[%emt 0:00:00]} Bg5 {[%emt 0:00:10] This bishop pair is nice.} 28. Ra1 {[%emt 0:00:31]} Bf4 {[%emt 0:00:35] Hoping for ...Rdg8.} 29. Bg2 {[%emt 0:00:30]} Ng5 {[%emt 0:00:58]} 30. Rxd8 {[%emt 0:00:04]} Rxd8 {[%emt 0:00:04]} (30... Kxd8 $2 {perishes.} 31. Nd6 $19) 31. Rh1 {[%emt 0:00:06]} Bf7 {[%emt 0:00:48]} ({But not} 31... b5 $2 32. Nb2 $19) 32. Nb2 {[%emt 0:00:27]} Bg6 {[%emt 0:00:00]} 33. Nd3 {[%emt 0:01:05]} (33. Nbd1 {is a better defense.}) 33... Nxe4 {[%emt 0:00:03] Black is clearly winning.} 34. Nxf4 {[%emt 0:00:10]} exf4 {[%emt 0:00:11]} 35. Bxe4 {[%emt 0:00:14]} (35. Nf1 $142 Nxc3+ 36. Kf2) 35... Bxe4 {[%emt 0:00:02]} 36. Rh4 {[%emt 0:00:03]} Bd3+ {[%emt 0:00:00] Weighted Error Value: White=0.50/Black=0.10 (very precise)} 0-1

[Event "MCCT Chessable Masters 2022"]
[Site "Online"]
[Date "2022.05.16"]
[Round "14.7"]
[White "Anton Guijarro, David"]
[Black "Mamedyarov, Shakhriyar"]
[Result "1/2-1/2"]
[ECO "C77"]
[WhiteElo "2691"]
[BlackElo "2770"]
[Annotator "TA"]
[PlyCount "93"]
[EventDate "2022.05.19"]
[EventType "tourn"]
[EventCountry "NET"]
[SourceTitle "playchess.com"]
[Source "ChessBase"]
[SourceQuality "1"]
[TimeControl "900+10"]

{[%evp 12,93,10,7,8,14,19,8,19,8,13,-3,23,0,0,0,0,0,0,0,25,17,26,-3,-10,-16,-7,-21,35,0,0,0,0,0,0,0,27,0,0,0,0,0,0,-12,0,0,0,0,0,0,0,0,21,0,0,0,0,0,0,0,0,0,0,0,0,0,0,-29,-29,-29,0,0,0,0,0,0,0,0,0,0,0,0,0,0]} 1. e4 {[%emt 0:00:00]} e5 {[%emt 0:00:00]} 2. Nf3 {[%emt 0:00:02]} Nc6 {[%emt 0:00:16]} 3. Bb5 {[%emt 0:00:03][%cal Bf1b5,Bb5a4,Ba4b3][%mdl 32]} a6 {[%emt 0:00:02]} 4. Ba4 {[%emt 0:00:02]} Nf6 {[%emt 0:00:01]} 5. d3 {[%emt 0:00:02]} b5 {[%emt 0:00:01]} 6. Bb3 {[%emt 0:00:01]} Bc5 {[%emt 0:00:01]} 7. Nc3 {[%emt 0:00:02] 7.c3 is a critical line.} h6 {[%emt 0:00:29] C77: Ruy Lopez: 3...a6 4 Ba4 Nf6, unusual lines.} 8. Nd5 {[%emt 0:00:11]} d6 {[%emt 0:00:10]} 9. c3 {[%emt 0:00:05]} Rb8 {[%emt 0:00:02]} 10. O-O {[%emt 0:00:09]} O-O {[%emt 0:00:13] [#]} 11. Bc2 $146 {[%emt 0:00:13]} ({Predecessor:} 11. Re1 Nxd5 12. exd5 Ne7 13. d4 exd4 14. Nxd4 Re8 15. Be3 Bd7 16. Qf3 Bxd4 17. Bxd4 {½-½ (40) Anand,V (2751)-Mamedyarov,S (2767) Baku 2021}) 11... Ba7 {[%emt 0:00:37]} 12. h3 {[%emt 0:00:27]} Be6 {[%emt 0:01:29]} 13. Nxf6+ {[%emt 0:00:12]} Qxf6 {[%emt 0:00:00]} 14. Be3 {[%emt 0:00:02]} Qg6 {[%emt 0:01:03]} 15. Kh2 {[%emt 0:01:37]} Qh5 {[%emt 0:00:23]} 16. d4 {[%emt 0:04:47][%cal Bd3d4,Bd4d5][%mdl 32] [#] Strongly threatening d5.} Bg4 {[%emt 0:02:27]} 17. d5 {[%emt 0:00:07]} Bxe3 {[%emt 0:00:02]} 18. fxe3 {[%emt 0:00:04]} Ne7 {[%emt 0:00:21]} 19. Qe1 {[%emt 0:00:44]} f5 {[%emt 0:02:27]} (19... Bd7 $11) 20. Qg3 {[%emt 0:04:32]} (20. Nh4 {is more complex.} Be2 21. Rxf5 Nxf5 22. exf5 Rbe8 23. e4) 20... fxe4 {[%emt 0:01:28][%cal Rg4f3]} 21. Qxg4 {[%emt 0:00:33]} Qxg4 {[%emt 0:00:02]} 22. hxg4 {[%emt 0:00:00]} exf3 {[%emt 0:00:01]} 23. gxf3 {[%emt 0:00:27]} g5 {[%emt 0:00:49]} (23... Nxd5 $2 24. Bb3 $18) 24. Be4 {[%emt 0:00:26]} Kg7 {[%emt 0:00:07]} 25. Kg3 {[%emt 0:00:37]} Ng8 {[%emt 0:00:23]} 26. Bf5 {[%emt 0:00:11]} h5 {[%emt 0:01:30]} 27. b4 {[%emt 0:01:11]} Nf6 {[%emt 0:01:56]} 28. e4 {[%emt 0:00:19]} hxg4 {[%emt 0:00:52]} 29. fxg4 {[%emt 0:00:05]} a5 {[%emt 0:00:27]} 30. Rh1 {[%emt 0:01:21]} Ra8 {[%emt 0:00:21]} 31. a3 {[%emt 0:00:16][%cal Ba2a3,Ba3a4,Ba4b5][%mdl 32]} Ra6 {[%emt 0:00:43]} 32. a4 {[%emt 0:00:15]} (32. c4 $5 {[%cal Rc4b5]}) 32... axb4 {[%emt 0:00:04]} 33. axb5 {[%emt 0:00:01]} Ra3 {[%emt 0:00:13]} 34. Rxa3 {[%emt 0:00:04]} bxa3 $11 {[%emt 0:00:00][%mdl 4096] Endgame KRB-KRN} 35. Ra1 {[%emt 0:00:04]} Ra8 {[%emt 0:00:01]} 36. Kf3 {[%emt 0:00:17]} Ng8 {[%emt 0:00:42]} ({Of course not} 36... a2 37. Ke3 $15) 37. Ke3 {[%emt 0:00:13]} Ne7 {[%emt 0:00:01]} 38. Be6 {[%emt 0:00:26]} Ng6 {[%emt 0:00:16]} 39. Kd2 {[%emt 0:00:45]} Nf4 {[%emt 0:00:06]} 40. Bf5 {[%emt 0:00:11]} Kf6 {[%emt 0:00:59]} 41. Kc2 {[%emt 0:00:14] The position is equal.} a2 {[%emt 0:00:09]} 42. Kb3 {[%emt 0:00:11]} Nd3 {[%emt 0:00:02]} 43. Kc2 $1 {[%emt 0:00:21]} Nc5 {[%emt 0:00:03] [#] ...Ra4 is the strong threat.} 44. Kb2 {[%emt 0:00:02]} Nd3+ {[%emt 0:00:01]} 45. Kc2 $1 {[%emt 0:00:01]} Nc5 {[%emt 0:00:01] And now ...Ra4 would win.} 46. Kb2 {[%emt 0:00:01]} Nd3+ {[%emt 0:00:16]} 47. Kc2 $1 {[%emt 0:00:01] A balanced but interesting game.  Weighted Error Value: White=0.05 (flawless) /Black=0.07 (flawless)} 1/2-1/2

[Event "MCCT Chessable Masters 2022"]
[Site "Online"]
[Date "2022.05.16"]
[Round "14.8"]
[White "Ding, Liren"]
[Black "Hansen, Eric"]
[Result "1/2-1/2"]
[ECO "D41"]
[WhiteElo "2806"]
[BlackElo "2606"]
[Annotator "TA"]
[PlyCount "112"]
[EventDate "2022.05.19"]
[EventType "tourn"]
[EventCountry "NET"]
[SourceTitle "playchess.com"]
[Source "ChessBase"]
[SourceQuality "1"]
[TimeControl "900+10"]

{[%evp 16,112,25,16,15,20,33,39,29,29,21,18,83,72,84,8,33,17,80,80,90,84,235,227,249,241,241,250,245,93,78,35,25,30,309,316,271,277,667,667,670,614,702,699,660,333,360,359,356,148,456,254,269,157,157,20,14,13,14,14,47,52,82,55,58,49,45,16,72,13,98,98,118,113,189,150,269,189,189,91,189,168,189,189,189,122,160,0,0,0,0,0,0,0,0,0,0,0,0]} 1. c4 {[%emt 0:00:00]} Nf6 {[%emt 0:00:00]} 2. Nf3 {[%emt 0:00:05]} c5 {[%emt 0:00:09]} 3. Nc3 {[%emt 0:00:08]} d5 {[%emt 0:00:19]} 4. cxd5 {[%emt 0:00:01]} Nxd5 {[%emt 0:00:01]} 5. e3 {[%emt 0:00:02]} Nc6 {[%emt 0:00:29]} 6. Bb5 {[%emt 0:00:15]} Nxc3 {[%emt 0:00:11]} 7. bxc3 {[%emt 0:00:36]} Bd7 {[%emt 0:00:02]} 8. O-O {[%emt 0:00:58]} e6 {[%emt 0:00:34]} 9. d4 {[%emt 0:00:05]} Be7 {[%emt 0:00:02] D41: Queen's Gambit Declined: Semi-Tarrasch with 5 cxd5.} 10. e4 {[%emt 0:01:13]} a6 {[%emt 0:00:04]} 11. Be2 {[%emt 0:00:46]} O-O {[%emt 0:02:08] White is slightly better.} 12. Bf4 {[%emt 0:01:11]} cxd4 {[%emt 0:03:15]} 13. cxd4 {[%emt 0:00:00] [#]} Qa5 $146 {[%emt 0:00:00]} (13... Rc8 $11) ({Predecessor:} 13... Rc8 14. Rc1 Ba3 15. Rc2 b5 16. Qd3 Be7 17. Rfc1 Nb4 18. Rxc8 Bxc8 19. Qb3 Bb7 {0-1 (46) Ulanov,A (2463)-Angulo Cubero,O (2151) Chess.com INT 2019}) 14. Rb1 $16 {[%emt 0:01:34]} Rfd8 {[%emt 0:04:25]} 15. Rxb7 {[%emt 0:04:03]} (15. a4 $16) 15... Qxa2 $11 {[%emt 0:00:09]} 16. Bc7 {[%emt 0:00:01]} Rdc8 {[%emt 0:00:47]} (16... Re8 $1 $11) 17. Bb6 $16 {[%emt 0:00:03]} Bd8 {[%emt 0:02:54]} 18. d5 {[%emt 0:00:59]} exd5 $2 {[%emt 0:00:02]} 19. exd5 $18 {[%emt 0:00:00]} (19. Rxd7 Bxb6 20. Qxd5 Qxd5 21. exd5 Nd4 22. Nxd4 Bxd4 $14) 19... Nb8 {[%emt 0:00:02]} 20. Bxd8 {[%emt 0:02:33]} Rxd8 {[%emt 0:00:03]} 21. Ne5 {[%emt 0:00:01]} Ba4 {[%emt 0:00:13]} 22. Qe1 {[%emt 0:00:10]} (22. Bc4 $18 {is the precise move to win.} Qxc4 23. Nxc4 Bxd1 24. Nb6 (24. Rxd1 Nd7 $14)) 22... Nd7 $16 {[%emt 0:00:32]} 23. Nc6 {[%emt 0:02:50]} (23. Bc4 $5 {[%cal Rc4a2]} Qc2 24. Bd3 $16) 23... Re8 {[%emt 0:02:05]} 24. Rxd7 {[%emt 0:00:02]} Qxe2 {[%emt 0:00:33][%mdl 8192]} (24... Rxe2 $11 25. Qb4 Bb5) 25. Ne7+ $18 {[%emt 0:00:16]} Rxe7 {[%emt 0:00:10]} 26. Rxe7 {[%emt 0:00:00]} Qd3 {[%emt 0:00:08]} (26... Qxe1 27. Rfxe1 Rd8) 27. Qe5 {[%emt 0:00:32]} Bb5 {[%emt 0:00:09][%csl Gb5][%cal Rd3f1] [#]} 28. Re1 {[%emt 0:00:02][%cal Oe7e8] White wants to mate with Re8+!} h6 {[%emt 0:00:04]} 29. h3 {[%emt 0:00:08]} Rd8 {[%emt 0:00:03]} 30. Qc7 {[%emt 0:00:06]} Rxd5 {[%emt 0:00:15]} 31. Rxf7 {[%emt 0:00:18]} Rg5 {[%emt 0:00:07]} 32. h4 {[%emt 0:00:25]} (32. g3 $18 {is more deadly.}) 32... Rg6 $2 {[%emt 0:00:08][%mdl 8192]} (32... Rxg2+ $16 {is more resistant.} 33. Kxg2 Qg6+ 34. Kf3 Qxf7+ 35. Qxf7+ Kxf7) 33. h5 {[%emt 0:00:17]} (33. g3 $142) 33... Rg5 {[%emt 0:00:02]} 34. Rfe7 {[%emt 0:00:24]} ({White should play} 34. Qb7 $18) 34... Qd5 $16 {[%emt 0:00:29][%csl Gg5][%cal Rd5g2]} 35. Qc8+ {[%emt 0:00:44]} (35. R7e4 $16) 35... Kh7 $11 {[%emt 0:00:04][%csl Gg5][%cal Rd5g2]} 36. Qh3 {[%emt 0:00:04] Hoping for f4.} Bc6 {[%emt 0:00:07][%cal Rg5g2]} 37. f3 {[%emt 0:00:03]} Qc5+ {[%emt 0:00:13]} (37... Qxf3 $5 38. Qxf3 Bxf3 $14) 38. R7e3 {[%emt 0:00:04]} Rxh5 {[%emt 0:00:11]} 39. Qe6 {[%emt 0:00:05]} Rg5 {[%emt 0:00:03]} 40. Kf2 {[%emt 0:00:10]} a5 {[%emt 0:00:12]} 41. g4 {[%emt 0:00:08]} Bd5 {[%emt 0:00:10]} (41... a4 $1 $11 {remains equal.}) 42. Qe7 {[%emt 0:00:06]} (42. Qa6 $16) 42... Qc4 {[%emt 0:00:05]} (42... Qd4 $11 43. Rg1 Qf4) 43. Qa3 $16 {[%emt 0:00:20] Active counter play!} Rg6 {[%emt 0:00:29]} 44. Qd3 {[%emt 0:00:09]} (44. Qxa5 $6 Qf4 45. Rg1 (45. Qxd5 Qh2+ 46. Kf1 Qh1+ 47. Kf2 Qh2+ 48. Kf1 Qh1+ 49. Kf2 Qh2+ $11) 45... Bxf3 46. Rxf3 Qd4+ 47. Re3 (47. Kf1 Qd1+ 48. Kf2 Qd4+ 49. Re3 Rf6+ 50. Ke2 Qc4+ 51. Kd1 Rd6+ 52. Ke1 Qc1+ 53. Kf2 Rf6+ 54. Rf3 Rxf3+ 55. Kxf3 Qxg1 $11) 47... Rf6+ 48. Ke2 Qc4+ 49. Kd2 Rd6+ 50. Ke1 Qc1+ 51. Kf2 Rf6+ 52. Rf3 Rxf3+ 53. Kxf3 Qxg1 $11) 44... Qc5 {[%emt 0:00:05]} (44... Qf4 $16 45. Rh1 (45. Qxd5 Qh2+ 46. Kf1 Qh3+ 47. Kg1 Qg3+ 48. Kh1 Qh3+ 49. Kg1 Qg3+ 50. Kh1 Qh3+ 51. Kg1 $11) 45... Bc4) 45. Kg3 {[%emt 0:00:10] Re5 is the strong threat.} Bc4 {[%emt 0:00:09]} (45... Qc7+ $16 46. f4 Qc6) 46. Qc2 {[%emt 0:00:06][%cal Oe3e6] aiming for Re6!} Qd6+ {[%emt 0:00:03]} 47. Kh3 {[%emt 0:00:08]} (47. Re5 $18 {and White stays clearly on top.} Bf7 48. Kg2) 47... Bf7 {[%emt 0:00:11]} (47... Qf4 $16) 48. Re5 $18 {[%emt 0:00:18]} Qb4 {[%emt 0:00:20]} 49. Qf5 {[%emt 0:00:07][%csl LRa5,LRf7]} Qb3 {[%emt 0:00:13]} 50. R1e3 {[%emt 0:00:10]} (50. Rxa5 $18 {Black must now prevent Ra6.} Be6 51. Rb5) 50... Qc4 {[%emt 0:00:03] [#]} 51. Re7 $2 {[%emt 0:00:05]} ({Weaker is} 51. Rxa5 Qf1+ 52. Kg3 Qg1+ 53. Kf4 Qh2+ 54. Ke4 Be6 $17) ({Better is} 51. Qd3 $1 $16) 51... Qf1+ $11 {[%emt 0:00:10] The position is equal.} 52. Kg3 {[%emt 0:00:01] Strongly threatening Re1.} Qg1+ {[%emt 0:00:03]} 53. Kh3 $1 {[%emt 0:00:27] Chess con chili.} ({But not} 53. Kf4 Qh2+ 54. Ke4 Ba2 $17) 53... Qh1+ {[%emt 0:00:01]} 54. Kg3 {[%emt 0:00:01] Re1 would kill now.} Qg1+ {[%emt 0:00:01]} 55. Kh3 $1 {[%emt 0:00:02] And now Re1 would win.} ({Much weaker is} 55. Kf4 Qh2+ 56. Ke4 Ba2 $17) 55... Qh1+ {[%emt 0:00:00]} 56. Kg3 {[%emt 0:00:01] Threatens to win with Re1.} Qg1+ {[%emt 0:00:00] Black escapes into a draw.  Weighted Error Value: White=0.48/Black=0.45} 1/2-1/2

[Event "MCCT Chessable Masters 2022"]
[Site "Online"]
[Date "2022.05.16"]
[Round "15.1"]
[White "Hansen, Eric"]
[Black "Carlsen, Magnus"]
[Result "0-1"]
[ECO "C13"]
[WhiteElo "2606"]
[BlackElo "2864"]
[Annotator "TA"]
[PlyCount "132"]
[EventDate "2022.05.19"]
[EventType "tourn"]
[EventCountry "NET"]
[SourceTitle "playchess.com"]
[Source "ChessBase"]
[SourceQuality "1"]
[TimeControl "900+10"]

{[%evp 12,132,19,19,22,11,14,0,21,-8,-16,-2,16,0,7,0,7,7,37,39,64,19,26,7,8,0,54,45,94,94,114,110,187,175,158,68,78,68,68,61,48,54,45,5,16,0,0,0,0,0,0,-13,-17,-10,-24,-47,-45,-44,-44,-157,-149,-139,-138,-120,0,0,0,0,0,0,0,0,0,0,0,0,0,0,0,0,0,0,0,0,0,0,0,0,0,0,0,0,0,0,0,0,0,0,0,0,0,0,0,0,0,0,0,-29982,-1000,-29984,-29985,-29984,-29976,-29976,-29977,-29977,-29978,-29985,-29986,-29986,-29987,-29989,-29990]} 1. e4 {[%emt 0:00:00]} e6 {[%emt 0:00:00]} 2. d4 {[%emt 0:00:10]} d5 {[%emt 0:00:02]} 3. Nc3 {[%emt 0:00:01]} Nf6 {[%emt 0:00:01]} 4. Bg5 {[%emt 0:00:07]} dxe4 {[%emt 0:00:03]} 5. Nxe4 {[%emt 0:00:02]} Be7 {[%emt 0:00:02]} 6. Bxf6 {[%emt 0:00:01]} gxf6 {[%emt 0:00:01]} 7. Qd2 {[%emt 0:00:10]} b6 {[%emt 0:00:18] C13: French: Classical System: 4 Bg5 Be7, Alekhine-Chatard Attack.} 8. O-O-O {[%emt 0:00:08]} Bb7 {[%emt 0:00:01]} 9. Nc3 {[%emt 0:00:40]} (9. Bb5+ Nd7 10. f3 f5 $15) 9... c6 {[%emt 0:00:05] The position is equal.} 10. g4 {[%emt 0:00:27]} h5 {[%emt 0:00:22]} 11. gxh5 {[%emt 0:00:10] [#]} Nd7 $146 {[%emt 0:00:03]} ({Predecessor:} 11... Rxh5 12. Be2 Rh8 13. f4 f5 14. Nf3 Nd7 15. Qe3 Qc7 16. Ne5 Rh7 17. h4 O-O-O {½-½ (37) Vucinic,G (2403)-Pezelj,N (2452) Banja Vrujci 2017}) 12. f4 {[%emt 0:01:03][%cal Of4f5]} f5 {[%emt 0:00:17]} 13. Nf3 {[%emt 0:00:10]} Qc7 {[%emt 0:00:12]} 14. Ne5 {[%emt 0:04:25]} Nxe5 {[%emt 0:00:03]} (14... Rxh5 $5 {[%cal Rh5h7]} 15. h4 Nxe5 16. dxe5 Rxh4 17. Rxh4 Bxh4 $11) 15. dxe5 {[%emt 0:00:02]} Rxh5 {[%emt 0:00:41]} 16. Rg1 {[%emt 0:00:35]} (16. Qg2 $5 {[%cal Rg2g8]}) 16... Rh8 {[%emt 0:00:02]} 17. Qg2 $36 {[%emt 0:02:18][%cal Oc3b5][%mdl 2048] Black is under pressure.} Rd8 {[%emt 0:00:15]} 18. Be2 {[%emt 0:00:06]} (18. Bc4 {is interesting.} b5 19. Qg7 Rf8 20. Rxd8+ Kxd8 21. Be2) 18... Rxd1+ {[%emt 0:01:16]} (18... Bc5 $11) 19. Rxd1 $14 {[%emt 0:00:05]} a6 {[%emt 0:00:30]} (19... Rh6 $14 {is superior.}) 20. Bf3 $16 {[%emt 0:00:09]} Rh6 {[%emt 0:00:41]} 21. Ne2 {[%emt 0:00:14][%cal Oh2h4] Strongly threatening h4!} (21. Qg8+ Bf8 $14) 21... Rg6 {[%emt 0:00:24]} (21... Kf8 $16 {was worth a try.}) 22. Qh3 $18 {[%emt 0:01:27]} Bf8 {[%emt 0:00:07]} 23. Kb1 {[%emt 0:00:20]} ({And not} 23. Qh8 Rh6 24. Qg8 Rg6 $11) (23. Bh5 $16 Rh6 24. Nd4) 23... c5 $14 {[%emt 0:00:33]} 24. a4 {[%emt 0:00:16]} Rh6 {[%emt 0:01:51]} 25. Qg2 {[%emt 0:00:04]} Bxf3 {[%emt 0:00:06]} 26. Qxf3 {[%emt 0:00:03]} Qc8 {[%emt 0:00:09] Against Qa8} 27. h3 {[%emt 0:00:19]} Be7 {[%emt 0:00:05]} 28. Qg2 {[%emt 0:02:17]} Kf8 {[%emt 0:00:05]} 29. Rd3 {[%emt 0:00:15]} Rg6 {[%emt 0:00:05]} 30. Qf3 {[%emt 0:00:02]} c4 {[%emt 0:00:07]} 31. Rd4 {[%emt 0:00:04]} b5 {[%emt 0:00:02]} 32. axb5 {[%emt 0:00:58]} axb5 {[%emt 0:00:00]} 33. Rd1 {[%emt 0:00:01]} b4 {[%emt 0:00:14]} 34. Nd4 {[%emt 0:00:22]} Kg7 {[%emt 0:00:24]} (34... c3 {looks sharper.} 35. Nb5 Qa6 36. Nd6 Qa4) 35. Nc6 {[%emt 0:00:37]} ({Better is} 35. Nb5 $15) 35... Bc5 $17 {[%emt 0:00:07] White must now prevent ...Qa8.} 36. Na5 {[%emt 0:00:21]} Qa6 {[%emt 0:01:17]} 37. Nb7 {[%emt 0:00:04]} Be3 {[%emt 0:00:10]} 38. Qxe3 $11 {[%emt 0:00:39]} Qxb7 {[%emt 0:00:02][%mdl 4096] Endgame KQR-KQR} 39. Rg1 {[%emt 0:00:01]} b3 {[%emt 0:00:39]} 40. Kc1 $1 {[%emt 0:00:22]} Qd5 {[%emt 0:01:03]} 41. Rxg6+ {[%emt 0:01:26]} fxg6 {[%emt 0:00:02][%cal Bf7g6,Bg6g5][%mdl 32] KQ-KQ} 42. Qa7+ {[%emt 0:00:00]} Kh6 {[%emt 0:00:00] aiming for ...Qh1+.} 43. Qg1 {[%emt 0:00:03] Inhibits Qh1.} Qd8 {[%emt 0:00:23] And now ...g5 would win.} 44. Qg3 {[%emt 0:00:10]} g5 {[%emt 0:01:39] Threatens to win with ...gxf4.} 45. cxb3 {[%emt 0:00:05]} cxb3 {[%emt 0:00:00]} 46. Qxb3 {[%emt 0:00:06]} Qc8+ {[%emt 0:00:01]} 47. Qc3 {[%emt 0:00:36]} Qa6 {[%emt 0:00:16]} 48. fxg5+ {[%emt 0:00:24]} Kg6 {[%emt 0:00:45]} 49. Qg3 {[%emt 0:00:16]} Qc4+ {[%emt 0:00:09]} 50. Kd2 {[%emt 0:00:03]} Qd4+ {[%emt 0:00:01]} 51. Kc2 {[%emt 0:00:01]} Qc4+ {[%emt 0:00:07]} 52. Kd2 {[%emt 0:00:01]} Qb4+ {[%emt 0:00:05]} 53. Kc2 {[%emt 0:00:01]} f4 {[%emt 0:00:05][%cal Bf5f4,Bf4f3,Bf3f2][%mdl 32]} 54. Qg4 {[%emt 0:01:05]} Qe4+ {[%emt 0:00:02]} 55. Kd2 {[%emt 0:00:07]} Qxe5 {[%emt 0:00:03] Hoping for ...Qe3+.} 56. h4 {[%emt 0:00:19]} Qe3+ {[%emt 0:00:02]} 57. Kd1 {[%emt 0:00:03]} f3 {[%emt 0:00:02]} 58. h5+ $1 {[%emt 0:00:09]} Kg7 {[%emt 0:00:03] ( -> ...Qd3+)} 59. Qg3 $2 {[%emt 0:00:13][%mdl 8192] [#]} (59. Qb4 $11 Qd3+ 60. Kc1 Qe3+ 61. Kd1 (61. Qd2 Qc5+ 62. Kd1 Qg1+ 63. Kc2 Qc5+ 64. Kd1 Qg1+ 65. Kc2 Qc5+ 66. Kd1 $11) 61... Qe2+ 62. Kc1 Qf1+ 63. Kd2 Qe2+ 64. Kc1 Qe3+ 65. Kd1 (65. Qd2 Qc5+ 66. Kd1 Qg1+ 67. Kc2 Qc5+ 68. Kb3 Qd5+ 69. Kc3 Qc5+ 70. Kb3 Qd5+ 71. Kc3 Qc5+ 72. Kb3 $11)) 59... e5 {[%emt 0:00:26]} (59... Qe2+ $142 60. Kc1 Qf1+ 61. Kd2 Qg2+ 62. Qxg2 fxg2 63. Ke3 g1=Q+ 64. Kf4 Qd4+ 65. Kf3 Qxb2 66. h6+ Kg6 67. Ke3 Qe5+ 68. Kd2 Qxg5+ 69. Kd3 Qd5+ 70. Kc3 Kxh6 71. Kb2 e5 72. Kc2 e4 73. Kb2 e3 74. Kc2 e2 75. Kb2 e1=Q 76. Ka3 Qc3+ 77. Ka4 Qd7#) 60. Qg4 {[%emt 0:00:03]} Qd3+ {[%emt 0:00:01] Black mates.} 61. Kc1 {[%emt 0:00:07]} f2 {[%emt 0:00:09]} 62. h6+ {[%emt 0:00:03] [#]} Kg6 $1 {[%emt 0:02:07]} 63. Qe6+ {[%emt 0:00:27]} Kxg5 {[%emt 0:00:01][%cal Rf2f1] Active counter play!} 64. Qe7+ {[%emt 0:00:10]} Kg4 {[%emt 0:00:12][%cal Rf2f1]} 65. Qe6+ {[%emt 0:00:12]} Qf5 {[%emt 0:00:28]} 66. Qc4+ {[%emt 0:00:03]} Qf4+ {[%emt 0:00:01] What a fight!  Weighted Error Value: White=0.31/Black=0.19 (very precise)} 0-1

[Event "MCCT Chessable Masters 2022"]
[Site "Online"]
[Date "2022.05.16"]
[Round "15.2"]
[White "Mamedyarov, Shakhriyar"]
[Black "Ding, Liren"]
[Result "1/2-1/2"]
[ECO "D38"]
[WhiteElo "2770"]
[BlackElo "2806"]
[Annotator "TA"]
[PlyCount "36"]
[EventDate "2022.05.19"]
[EventType "tourn"]
[EventCountry "NET"]
[SourceTitle "playchess.com"]
[Source "ChessBase"]
[SourceQuality "1"]
[TimeControl "900+10"]

{[%evp 20,36,18,16,6,0,0,0,1,0,0,-6,-3,-3,0,-6,0,0,0]} 1. d4 {[%emt 0:00:00]} Nf6 {[%emt 0:00:00]} 2. c4 {[%emt 0:00:02]} e6 {[%emt 0:00:01]} 3. Nf3 {[%emt 0:00:02]} d5 {[%emt 0:00:01]} 4. Nc3 {[%emt 0:00:02]} Bb4 {[%emt 0:00:06]} 5. Bg5 {[%emt 0:00:11]} h6 {[%emt 0:00:01]} 6. Bxf6 {[%emt 0:00:01]} Qxf6 {[%emt 0:00:00]} 7. e3 {[%emt 0:00:01]} O-O {[%emt 0:00:02]} 8. Rc1 {[%emt 0:00:04]} dxc4 {[%emt 0:00:01]} 9. Bxc4 {[%emt 0:00:00]} c5 {[%emt 0:00:00]} 10. O-O {[%emt 0:00:08]} cxd4 {[%emt 0:00:01]} 11. Nxd4 {[%emt 0:00:01] The position is equal.} (11. Ne4 Qe7 12. Nxd4 Bd7 13. Be2 Nc6 14. a3 Nxd4 15. Qxd4 Ba5 16. Qc5 Bd8 17. Rfd1 Bc6 18. Bf3 Re8 19. b4 Bb6 20. Qxe7 Rxe7 21. Nd6 Bxf3 22. gxf3 Rd7 23. Nc4 Rxd1+ 24. Rxd1 Rd8 25. Rxd8+ Bxd8 {1-0 (57) Mamedyarov,S (2765)-Ding,L (2799) Chess.com INT 2021}) 11... Bd7 {[%emt 0:00:02][%cal Bc8d7,Bd7c6,Bc6d5][%mdl 32] D38: Queen's Gambit Declined: Ragozin Defence (4 Nf3 Bb4).} 12. Qb3 {[%emt 0:00:05]} Nc6 {[%emt 0:00:01]} 13. Nxc6 {[%emt 0:00:01]} Bxc3 {[%emt 0:00:00]} 14. Rxc3 {[%emt 0:00:01]} Bxc6 {[%emt 0:00:02]} 15. Bb5 {[%emt 0:00:02]} Bd5 {[%emt 0:00:00]} 16. Bc4 {[%emt 0:00:00]} Bc6 {[%emt 0:00:00]} 17. Bb5 {[%emt 0:00:01] [#]} Bd5 $146 {[%emt 0:00:01]} ({Predecessor:} 17... Be4 18. Bd3 Bxd3 19. Rxd3 b6 20. Rfd1 Rad8 21. Rxd8 Rxd8 22. Rxd8+ Qxd8 23. g3 {½-½ (33) Storme,I (2397)-Wiedenkeller,M (2445) Helsingborg 2021}) 18. Bc4 {[%emt 0:00:00]} Bc6 {[%emt 0:00:00] An even fight not without its subleties.  Weighted Error Value: White=0.01 (flawless) /Black=0.02 (flawless)} 1/2-1/2